fUSD/lending_fUSD_20240213
["ID","MTS","AMOUNT","RATE_DAILY","PERIOD"]
[313919852,1707823855483,-1050.85,0.00030437,2]
[313919853,1707823855494,-562.43,0.00030437,2]
[313919854,1707823855505,-2526.49,0.00030437,2]
[313919855,1707823855515,-500.0,0.00030437,2]
[313919856,1707823855526,-500.0,0.00030437,2]
[313919857,1707823855536,-587.49,0.00030437,2]
[313919858,1707823855546,-500.0,0.00030437,2]
[313919859,1707823855557,-500.0,0.00030437,2]
[313919860,1707823855569,-500.0,0.00030437,2]
[313919861,1707823855579,-22013.21,0.00030437,2]
[313919862,1707823855591,-500.0,0.00030437,2]
[313919863,1707823855601,-500.0,0.00030437,2]
[313919864,1707823855612,-980.47,0.00030437,2]
[313919865,1707823855622,-500.0,0.00030437,2]
[313919866,1707823855635,-500.0,0.00030437,2]
[313919867,1707823855646,-500.0,0.00030437,2]
[313919868,1707823855656,-4024.1,0.00030437,2]
[313919869,1707823855667,-1644.37,0.00030437,2]
[313919870,1707823855678,-504.78,0.00030437,2]
[313919871,1707823855690,-563.36,0.00030437,2]
[313919872,1707823855702,-500.0,0.00030437,2]
[313919873,1707823855713,-538.99,0.00030437,2]
[313919874,1707823855931,-500.0,0.00030437,2]
[313919875,1707823855948,-1049.6,0.00030437,2]
[313919876,1707823855959,-513.64,0.00030437,2]
[313919877,1707823855969,-588.16858535,0.00030437,2]
[313919878,1707823855978,-1057.39,0.00030437,2]
[313919879,1707823855987,-500.0,0.00030437,2]
[313919880,1707823855997,-500.0,0.00030437,2]
[313919881,1707823856007,-339.50458929,0.00030472,2]
[313919882,1707823856018,-1371.76002177,0.00030472,2]
[313919883,1707823856028,-205.0,0.00030511,8]
[313919884,1707823856039,-720.1,0.00030584,2]
[313919885,1707823856049,-500.0,0.00030584,2]
[313919886,1707823856062,-1000.0,0.00030584,7]
[313919887,1707823856072,-210.17428397,0.00030584,2]
[313919888,1707823856084,-1133.91,0.00030584,2]
[313919889,1707823856099,-500.0,0.00030584,2]
[313919890,1707823856109,-500.0,0.00030584,2]
[313919891,1707823856123,-562.4,0.00030584,2]
[313919892,1707823856134,-200.0,0.000306,3]
[313919893,1707823856144,-200.0,0.00030647,2]
[313919894,1707823856154,-500.0,0.00030684,2]
[313919895,1707823856165,-500.0,0.00030684,2]
[313919896,1707823856178,-231.12725721,0.00030711,2]
[313919897,1707823856188,-500.0,0.00030711,2]
[313919898,1707823856199,-500.0,0.00030711,7]
[313919899,1707823856208,-500.0,0.00030711,2]
[313919900,1707823856218,-541.25,0.00030711,2]
[313919901,1707823856228,-500.0,0.00030711,2]
[313919902,1707823856237,-500.0,0.00030711,2]
[313919903,1707823856247,-500.0,0.00030711,2]
[313919904,1707823856258,-500.0,0.00030711,2]
[313919905,1707823856268,-500.0,0.00030711,2]
[313919906,1707823856278,-1228.16,0.00030711,2]
[313919907,1707823856288,-1025.19,0.00030711,2]
[313919908,1707823856297,-500.0,0.00030711,2]
[313919909,1707823856307,-500.0,0.00030711,2]
[313919910,1707823856318,-500.0,0.00030711,2]
[313919911,1707823856328,-1474.43,0.00030711,2]
[313919912,1707823856338,-500.0,0.00030711,2]
[313919913,1707823856353,-835.02,0.00030711,2]
[313919914,1707823856366,-500.0,0.00030711,2]
[313919915,1707823856375,-714.04,0.00030711,2]
[313919916,1707823856385,-500.0,0.00030711,2]
[313919917,1707823856395,-500.0,0.00030711,2]
[313919918,1707823856406,-500.0,0.00030711,2]
[313919919,1707823856415,-500.0,0.00030711,2]
[313919920,1707823856424,-185.99111935,0.00030711,2]
[313919921,1707823856435,-1562.04,0.00030711,2]
[313919922,1707823856445,-1088.36,0.00030711,2]
[313919923,1707823856455,-682.24,0.00030711,2]
[313919924,1707823856465,-500.0,0.00030711,2]
[313919925,1707823856474,-656.5,0.00030711,2]
[313919926,1707823856483,-1750.39,0.00030711,2]
[313919927,1707823856493,-1786.42,0.00030711,2]
[313919928,1707823856502,-500.0,0.00030711,2]
[313919929,1707823856511,-500.0,0.00030711,2]
[313919930,1707823856520,-799.68,0.00030711,2]
[313919931,1707823856530,-468.52220127,0.00030711,2]
[313919932,1707823856539,-500.0,0.00030711,2]
[313919933,1707823856549,-500.0,0.00030711,2]
[313919934,1707823856559,-500.0,0.00030711,2]
[313919935,1707823856569,-650.86,0.00030711,2]
[313919936,1707823856579,-500.0,0.00030711,2]
[313919937,1707823856588,-500.0,0.00030711,2]
[313919938,1707823856600,-1873.71,0.00030711,2]
[313919939,1707823856610,-500.0,0.00030711,2]
[313919940,1707823856620,-1445.49,0.00030711,2]
[313919941,1707823856630,-500.0,0.00030711,2]
[313919942,1707823856639,-552.15,0.00030711,2]
[313919943,1707823856649,-500.0,0.00030711,2]
[313919944,1707823856658,-500.0,0.00030711,2]
[313919945,1707823856667,-479.36974083,0.00030711,2]
[313919946,1707823856677,-500.0,0.00030711,2]
[313919947,1707823856687,-500.0,0.00030711,2]
[313919948,1707823856697,-500.55,0.00030711,2]
[313919949,1707823856708,-544.89,0.00030711,2]
[313919950,1707823856718,-1167.13,0.00030711,2]
[313919951,1707823856727,-500.0,0.00030711,2]
[313919952,1707823856737,-1691.15,0.00030711,2]
[313919953,1707823856747,-500.0,0.00030711,2]
[313919954,1707823856756,-500.0,0.00030711,2]
[313919955,1707823856767,-525.08,0.00030711,2]
[313919956,1707823856777,-500.0,0.00030711,2]
[313919957,1707823856787,-191.18443419,0.00030711,2]
[313919958,1707823856797,-290.36530777,0.00030711,2]
[313919959,1707823856807,-500.0,0.00030711,2]
[313919960,1707823856817,-1396.74,0.00030711,2]
[313919961,1707823856827,-1050.85,0.00030711,2]
[313919962,1707823856837,-562.43,0.00030711,2]
[313919963,1707823856849,-2526.49,0.00030711,2]
[313919964,1707823856859,-500.0,0.00030711,2]
[313919965,1707823856868,-500.0,0.00030711,2]
[313919966,1707823856878,-587.49,0.00030711,2]
[313919967,1707823856888,-500.0,0.00030711,2]
[313919968,1707823856898,-500.0,0.00030711,2]
[313919969,1707823856907,-500.0,0.00030711,2]
[313919970,1707823856917,-22013.21,0.00030711,2]
[313919971,1707823856927,-500.0,0.00030711,2]
[313919972,1707823856937,-500.0,0.00030711,2]
[313919973,1707823856946,-980.47,0.00030711,2]
[313919974,1707823856956,-500.0,0.00030711,2]
[313919975,1707823856965,-500.0,0.00030711,2]
[313919976,1707823856975,-500.0,0.00030711,2]
[313919977,1707823856985,-4024.1,0.00030711,2]
[313919978,1707823856996,-1644.37,0.00030711,2]
[313919979,1707823857006,-504.78,0.00030711,2]
[313919980,1707823857016,-563.36,0.00030711,2]
[313919981,1707823857025,-500.0,0.00030711,2]
[313919982,1707823857035,-538.99,0.00030711,2]
[313919983,1707823857045,-500.0,0.00030711,2]
[313919984,1707823857054,-1049.6,0.00030711,2]
[313919985,1707823857064,-513.64,0.00030711,2]
[313919986,1707823857073,-1057.39,0.00030711,2]
[313919987,1707823857082,-458.59588546,0.00030711,2]
[313919988,1707823857093,-500.0,0.00030711,2]
[313919989,1707823857103,-152.0,0.00030806,3]
[313919990,1707823857113,-164.58,0.00030844,2]
[313919991,1707823857123,-720.1,0.00030858,2]
[313919992,1707823857132,-500.0,0.00030858,2]
[313919993,1707823857142,-1000.0,0.00030858,7]
[313919994,1707823857152,-1133.91,0.00030858,2]
[313919995,1707823857162,-500.0,0.00030858,2]
[313919996,1707823857171,-500.0,0.00030858,2]
[313919997,1707823857181,-562.4,0.00030858,2]
[313919998,1707823857190,-312.5529508,0.00030885,2]
[313919999,1707823857200,-1255.75020522,0.000309,2]
[313920000,1707823857210,-500.0,0.00030958,2]
[313920001,1707823857219,-264.67627949,0.00030958,2]
[313920002,1707823857229,-500.0,0.00030985,2]
[313920003,1707823857238,-500.0,0.00030985,7]
[313920004,1707823857247,-500.0,0.00030985,2]
[313920005,1707823857257,-541.25,0.00030985,2]
[313920006,1707823857266,-500.0,0.00030985,2]
[313920007,1707823857276,-500.0,0.00030985,2]
[313920008,1707823857285,-500.0,0.00030985,2]
[313920009,1707823857295,-500.0,0.00030985,2]
[313920010,1707823857304,-500.0,0.00030985,2]
[313920011,1707823857313,-1228.16,0.00030985,2]
[313920012,1707823857323,-1025.19,0.00030985,2]
[313920013,1707823857333,-500.0,0.00030985,2]
[313920014,1707823857344,-500.0,0.00030985,2]
[313920015,1707823857354,-500.0,0.00030985,2]
[313920016,1707823857364,-1474.43,0.00030985,2]
[313920017,1707823857374,-500.0,0.00030985,2]
[313920018,1707823857383,-835.02,0.00030985,2]
[313920019,1707823857392,-341.63243288,0.00030985,2]
[313920020,1707823857402,-714.04,0.00030985,2]
[313920021,1707823857411,-500.0,0.00030985,2]
[313920022,1707823857420,-500.0,0.00030985,2]
[313920023,1707823857429,-500.0,0.00030985,2]
[313920024,1707823857439,-500.0,0.00030985,2]
[313920025,1707823857449,-1562.04,0.00030985,2]
[313920026,1707823857460,-1088.36,0.00030985,2]
[313920027,1707823857469,-682.24,0.00030985,2]
[313920028,1707823857478,-500.0,0.00030985,2]
[313920029,1707823857488,-656.5,0.00030985,2]
[313920030,1707823857497,-1750.39,0.00030985,2]
[313920031,1707823857507,-1786.42,0.00030985,2]
[313920032,1707823857516,-500.0,0.00030985,2]
[313920033,1707823857525,-500.0,0.00030985,2]
[313920034,1707823857535,-799.68,0.00030985,2]
[313920035,1707823857545,-500.0,0.00030985,2]
[313920036,1707823857554,-500.0,0.00030985,2]
[313920037,1707823857563,-500.0,0.00030985,2]
[313920038,1707823857572,-650.86,0.00030985,2]
[313920039,1707823857582,-500.0,0.00030985,2]
[313920040,1707823857591,-500.0,0.00030985,2]
[313920041,1707823857602,-1873.71,0.00030985,2]
[313920042,1707823857611,-500.0,0.00030985,2]
[313920043,1707823857621,-1445.49,0.00030985,2]
[313920044,1707823857630,-237.303277,0.00030985,7]
[313920045,1707823857639,-500.0,0.00030985,2]
[313920046,1707823857649,-237.303269,0.00030985,7]
[313920047,1707823857658,-231.676894,0.00030985,7]
[313920048,1707823857667,-231.676898,0.00030985,7]
[313920049,1707823857677,-552.15,0.00030985,2]
[313920050,1707823857686,-500.0,0.00030985,2]
[313920051,1707823857695,-500.0,0.00030985,2]
[313920052,1707823857705,-500.0,0.00030985,2]
[313920053,1707823857714,-500.0,0.00030985,2]
[313920054,1707823857723,-500.55,0.00030985,2]
[313920055,1707823857733,-544.89,0.00030985,2]
[313920056,1707823857742,-1167.13,0.00030985,2]
[313920057,1707823857752,-500.0,0.00030985,2]
[313920058,1707823857761,-1691.15,0.00030985,2]
[313920059,1707823857771,-500.0,0.00030985,2]
[313920060,1707823857780,-500.0,0.00030985,2]
[313920061,1707823857789,-525.08,0.00030985,2]
[313920062,1707823857799,-500.0,0.00030985,2]
[313920063,1707823857808,-500.0,0.00030985,2]
[313920064,1707823857817,-1396.74,0.00030985,2]
[313920065,1707823857827,-1050.85,0.00030985,2]
[313920066,1707823857837,-562.43,0.00030985,2]
[313920067,1707823857846,-2526.49,0.00030985,2]
[313920068,1707823857855,-500.0,0.00030985,2]
[313920069,1707823857865,-500.0,0.00030985,2]
[313920070,1707823857874,-587.49,0.00030985,2]
[313920071,1707823857884,-500.0,0.00030985,2]
[313920072,1707823857893,-500.0,0.00030985,2]
[313920073,1707823857903,-500.0,0.00030985,2]
[313920074,1707823857913,-22013.21,0.00030985,2]
[313920075,1707823857922,-500.0,0.00030985,2]
[313920076,1707823857932,-500.0,0.00030985,2]
[313920077,1707823857941,-980.47,0.00030985,2]
[313920078,1707823857951,-500.0,0.00030985,2]
[313920079,1707823857961,-500.0,0.00030985,2]
[313920080,1707823857970,-500.0,0.00030985,2]
[313920081,1707823857980,-4024.1,0.00030985,2]
[313920082,1707823857989,-1644.37,0.00030985,2]
[313920083,1707823857999,-504.78,0.00030985,2]
[313920084,1707823858008,-151.0,0.00030985,7]
[313920085,1707823858018,-563.36,0.00030985,2]
[313920086,1707823858027,-500.0,0.00030985,2]
[313920087,1707823858036,-538.99,0.00030985,2]
[313920088,1707823858046,-500.0,0.00030985,2]
[313920089,1707823858056,-1049.6,0.00030985,2]
[313920090,1707823858065,-513.64,0.00030985,2]
[313920091,1707823858075,-1057.39,0.00030985,2]
[313920092,1707823858084,-151.0,0.00030985,7]
[313920093,1707823858093,-500.0,0.00030985,2]
[313920094,1707823858105,-50000.0,0.00031,2]
[313920095,1707823858115,-259.14921421,0.00031,4]
[313920096,1707823858124,-211.0,0.00031,2]
[313920097,1707823858134,-3120.7975175,0.00031,4]
[313920098,1707823858144,-3446.01129655,0.00031,5]
[313920099,1707823858153,-231.71299077,0.00031,3]
[313920100,1707823858162,-213.0,0.00031,2]
[313920101,1707823858171,-500.0,0.00031,3]
[313920102,1707823858182,-151.0,0.00031,7]
[313920103,1707823858192,-151.65,0.0003105,2]
[313920104,1707823858202,-200.0,0.000311,3]
[313920105,1707823858211,-720.1,0.00031132,2]
[313920106,1707823858220,-500.0,0.00031132,2]
[313920107,1707823858230,-363.10784521,0.00031132,7]
[313920108,1707823858241,-1133.91,0.00031132,2]
[313920109,1707823858251,-500.0,0.00031132,2]
[313920110,1707823858260,-500.0,0.00031132,2]
[313920111,1707823858310,-562.4,0.00031132,2]
[313920112,1707823858319,-930.5563083,0.00031217,2]
[313920113,1707823858328,-151.0,0.00031232,7]
[313920114,1707823858337,-500.0,0.00031232,2]
[313920115,1707823858349,-26074.7827555,0.00031238,2]
[313920116,1707823858361,-877.976961,0.00031238,2]
[313920117,1707823858373,-500.0,0.00031259,2]
[313920118,1707823858383,-500.0,0.00031259,7]
[313920119,1707823858394,-500.0,0.00031259,2]
[313920120,1707823858403,-541.25,0.00031259,2]
[313920121,1707823858412,-500.0,0.00031259,2]
[313920122,1707823858422,-500.0,0.00031259,2]
[313920123,1707823858431,-399.29527314,0.00031259,2]
[313920124,1707823858442,-500.0,0.00031259,2]
[313920125,1707823858452,-500.0,0.00031259,2]
[313920126,1707823858461,-1228.16,0.00031259,2]
[313920127,1707823858470,-1025.19,0.00031259,2]
[313920128,1707823858479,-500.0,0.00031259,2]
[313920129,1707823858488,-500.0,0.00031259,2]
[313920130,1707823858498,-500.0,0.00031259,2]
[313920131,1707823858507,-1474.43,0.00031259,2]
[313920132,1707823858517,-500.0,0.00031259,2]
[313920133,1707823858525,-835.02,0.00031259,2]
[313920134,1707823858534,-714.04,0.00031259,2]
[313920135,1707823858543,-500.0,0.00031259,2]
[313920136,1707823858552,-500.0,0.00031259,2]
[313920137,1707823858561,-500.0,0.00031259,2]
[313920138,1707823858570,-500.0,0.00031259,2]
[313920139,1707823858580,-1562.04,0.00031259,2]
[313920140,1707823858589,-1088.36,0.00031259,2]
[313920141,1707823858600,-500.0,0.00031259,2]
[313920142,1707823858609,-682.24,0.00031259,2]
[313920143,1707823858619,-656.5,0.00031259,2]
[313920144,1707823858628,-1750.39,0.00031259,2]
[313920145,1707823858638,-1786.42,0.00031259,2]
[313920146,1707823858648,-500.0,0.00031259,2]
[313920147,1707823858657,-500.0,0.00031259,2]
[313920148,1707823858667,-799.68,0.00031259,2]
[313920149,1707823858676,-500.0,0.00031259,2]
[313920150,1707823858686,-500.0,0.00031259,2]
[313920151,1707823858695,-500.0,0.00031259,2]
[313920152,1707823858705,-650.86,0.00031259,2]
[313920153,1707823858714,-500.0,0.00031259,2]
[313920154,1707823858724,-500.0,0.00031259,2]
[313920155,1707823858733,-1873.71,0.00031259,2]
[313920156,1707823858743,-500.0,0.00031259,2]
[313920157,1707823858752,-1445.49,0.00031259,2]
[313920158,1707823858762,-500.0,0.00031259,2]
[313920159,1707823858771,-552.15,0.00031259,2]
[313920160,1707823858780,-500.0,0.00031259,2]
[313920161,1707823858789,-500.0,0.00031259,2]
[313920162,1707823858799,-500.0,0.00031259,2]
[313920163,1707823858808,-500.0,0.00031259,2]
[313920164,1707823858818,-500.55,0.00031259,2]
[313920165,1707823858827,-544.89,0.00031259,2]
[313920166,1707823858836,-1167.13,0.00031259,2]
[313920167,1707823858848,-500.0,0.00031259,2]
[313920168,1707823858857,-1691.15,0.00031259,2]
[313920169,1707823858866,-260.10185713,0.00031259,2]
[313920170,1707823858874,-500.0,0.00031259,2]
[313920171,1707823858883,-525.08,0.00031259,2]
[313920172,1707823858892,-500.0,0.00031259,2]
[313920173,1707823858901,-500.0,0.00031259,2]
[313920174,1707823858911,-1396.74,0.00031259,2]
[313920175,1707823858920,-1050.85,0.00031259,2]
[313920176,1707823858929,-562.43,0.00031259,2]
[313920177,1707823858938,-2526.49,0.00031259,2]
[313920178,1707823858947,-500.0,0.00031259,2]
[313920179,1707823858957,-587.49,0.00031259,2]
[313920180,1707823858966,-500.0,0.00031259,2]
[313920181,1707823858975,-500.0,0.00031259,2]
[313920182,1707823858984,-500.0,0.00031259,2]
[313920183,1707823858993,-642.53104097,0.00031259,2]
[313920184,1707823859003,-22013.21,0.00031259,2]
[313920185,1707823859013,-500.0,0.00031259,2]
[313920186,1707823859022,-500.0,0.00031259,2]
[313920187,1707823859031,-980.47,0.00031259,2]
[313920188,1707823859041,-454.29165092,0.00031259,2]
[313920189,1707823859051,-500.0,0.00031259,2]
[313920190,1707823859060,-500.0,0.00031259,2]
[313920191,1707823859069,-4024.1,0.00031259,2]
[313920192,1707823859079,-1644.37,0.00031259,2]
[313920193,1707823859088,-504.78,0.00031259,2]
[313920194,1707823859099,-563.36,0.00031259,2]
[313920195,1707823859108,-500.0,0.00031259,2]
[313920196,1707823859117,-538.99,0.00031259,2]
[313920197,1707823859127,-500.0,0.00031259,2]
[313920198,1707823859136,-1049.6,0.00031259,2]
[313920199,1707823859145,-513.64,0.00031259,2]
[313920200,1707823859155,-1057.39,0.00031259,2]
[313920201,1707823859165,-837.05,0.00031266,2]
[313920203,1707823859174,-155.0,0.00031325,2]
[313920204,1707823859185,-339.50458929,0.00031362,2]
[313920205,1707823859194,-1371.76002177,0.00031362,2]
[313920206,1707823859203,-211.0,0.000314,2]
[313920207,1707823859213,-213.0,0.000314,2]
[313920208,1707823859222,-720.1,0.00031406,2]
[313920209,1707823859231,-500.0,0.00031406,2]
[313920210,1707823859240,-1133.91,0.00031406,2]
[313920211,1707823859250,-295.93357855,0.00031406,2]
[313920212,1707823859259,-500.0,0.00031406,2]
[313920213,1707823859270,-562.4,0.00031406,2]
[313920214,1707823859279,-150.0,0.00031419,7]
[313920215,1707823859289,-4645.7208012,0.0003143,4]
[313920216,1707823859299,-1000.0,0.000315,2]
[313920217,1707823859308,-500.0,0.00031506,2]
[313920218,1707823859318,-239.46563263,0.0003153,2]
[313920219,1707823859328,-500.0,0.00031533,2]
[313920220,1707823859337,-500.0,0.00031533,7]
[313920221,1707823859347,-500.0,0.00031533,2]
[313920222,1707823859358,-541.25,0.00031533,2]
[313920223,1707823859370,-500.0,0.00031533,2]
[313920224,1707823859380,-500.0,0.00031533,2]
[313920225,1707823859389,-500.0,0.00031533,2]
[313920226,1707823859398,-500.0,0.00031533,2]
[313920227,1707823859409,-1228.16,0.00031533,2]
[313920228,1707823859418,-1025.19,0.00031533,2]
[313920229,1707823859427,-500.0,0.00031533,2]
[313920230,1707823859437,-500.0,0.00031533,2]
[313920231,1707823859447,-500.0,0.00031533,2]
[313920232,1707823859457,-1474.43,0.00031533,2]
[313920233,1707823859467,-500.0,0.00031533,2]
[313920234,1707823859475,-835.02,0.00031533,2]
[313920235,1707823859485,-714.04,0.00031533,2]
[313920236,1707823859494,-500.0,0.00031533,2]
[313920237,1707823859503,-500.0,0.00031533,2]
[313920238,1707823859512,-500.0,0.00031533,2]
[313920239,1707823859521,-500.0,0.00031533,2]
[313920240,1707823859531,-1562.04,0.00031533,2]
[313920241,1707823859541,-1088.36,0.00031533,2]
[313920242,1707823859550,-500.0,0.00031533,2]
[313920243,1707823859559,-682.24,0.00031533,2]
[313920244,1707823859569,-656.5,0.00031533,2]
[313920245,1707823859578,-1750.39,0.00031533,2]
[313920246,1707823859588,-1786.42,0.00031533,2]
[313920247,1707823859598,-406.54901679,0.00031533,2]
[313920248,1707823859607,-500.0,0.00031533,2]
[313920249,1707823859616,-799.68,0.00031533,2]
[313920250,1707823859625,-500.0,0.00031533,2]
[313920251,1707823859635,-500.0,0.00031533,2]
[313920252,1707823859645,-195.86439961,0.00031533,2]
[313920253,1707823859654,-650.86,0.00031533,2]
[313920254,1707823859663,-500.0,0.00031533,2]
[313920255,1707823859673,-500.0,0.00031533,2]
[313920256,1707823859682,-1873.71,0.00031533,2]
[313920257,1707823859691,-500.0,0.00031533,2]
[313920258,1707823859701,-1445.49,0.00031533,2]
[313920259,1707823859710,-500.0,0.00031533,2]
[313920260,1707823859719,-552.15,0.00031533,2]
[313920261,1707823859729,-500.0,0.00031533,2]
[313920262,1707823859738,-500.0,0.00031533,2]
[313920263,1707823859747,-500.0,0.00031533,2]
[313920264,1707823859757,-356.15484326,0.00031533,2]
[313920265,1707823859767,-500.55,0.00031533,2]
[313920266,1707823859776,-544.89,0.00031533,2]
[313920267,1707823859786,-1167.13,0.00031533,2]
[313920268,1707823859795,-500.0,0.00031533,2]
[313920269,1707823859804,-1691.15,0.00031533,2]
[313920270,1707823859813,-500.0,0.00031533,2]
[313920271,1707823859823,-525.08,0.00031533,2]
[313920272,1707823859832,-500.0,0.00031533,2]
[313920273,1707823859841,-500.0,0.00031533,2]
[313920274,1707823859853,-1396.74,0.00031533,2]
[313920275,1707823859862,-1050.85,0.00031533,2]
[313920276,1707823859871,-562.43,0.00031533,2]
[313920277,1707823859881,-2526.49,0.00031533,2]
[313920278,1707823859890,-500.0,0.00031533,2]
[313920279,1707823859899,-587.49,0.00031533,2]
[313920280,1707823859908,-500.0,0.00031533,2]
[313920281,1707823859918,-500.0,0.00031533,2]
[313920282,1707823859927,-500.0,0.00031533,2]
[313920283,1707823859937,-22013.21,0.00031533,2]
[313920284,1707823859947,-500.0,0.00031533,2]
[313920285,1707823859956,-500.0,0.00031533,2]
[313920286,1707823859966,-980.47,0.00031533,2]
[313920287,1707823859975,-500.0,0.00031533,2]
[313920288,1707823859984,-500.0,0.00031533,2]
[313920289,1707823859994,-4024.1,0.00031533,2]
[313920290,1707823860003,-1644.37,0.00031533,2]
[313920291,1707823860012,-504.78,0.00031533,2]
[313920292,1707823860022,-563.36,0.00031533,2]
[313920293,1707823860031,-500.0,0.00031533,2]
[313920294,1707823860041,-538.99,0.00031533,2]
[313920295,1707823860051,-500.0,0.00031533,2]
[313920296,1707823860061,-1049.6,0.00031533,2]
[313920297,1707823860071,-513.64,0.00031533,2]
[313920298,1707823860081,-1057.39,0.00031533,2]
[313920299,1707823860091,-180.0,0.00031644,2]
[313920300,1707823860101,-168.27,0.00031644,2]
[313920301,1707823860110,-1499.0232557,0.00031658,2]
[313920302,1707823860119,-720.1,0.0003168,2]
[313920303,1707823860129,-500.0,0.0003168,2]
[313920304,1707823860138,-1133.91,0.0003168,2]
[313920305,1707823860148,-500.0,0.0003168,2]
[313920306,1707823860158,-562.4,0.0003168,2]
[313920307,1707823860167,-500.0,0.0003178,2]
[313920308,1707823860177,-211.0,0.000318,2]
[313920309,1707823860186,-213.0,0.000318,2]
[313920310,1707823860196,-151.0,0.000318,7]
[313920311,1707823860205,-160.92902526,0.00031807,2]
[313920312,1707823860214,-500.0,0.00031807,7]
[313920313,1707823860223,-500.0,0.00031807,2]
[313920314,1707823860232,-541.25,0.00031807,2]
[313920315,1707823860242,-465.79764756,0.00031807,2]
[313920316,1707823860251,-500.0,0.00031807,2]
[313920317,1707823860260,-500.0,0.00031807,2]
[313920318,1707823860270,-500.0,0.00031807,2]
[313920319,1707823860280,-1228.16,0.00031807,2]
[313920320,1707823860289,-1025.19,0.00031807,2]
[313920321,1707823860298,-500.0,0.00031807,2]
[313920322,1707823860308,-500.0,0.00031807,2]
[313920323,1707823860317,-500.0,0.00031807,2]
[313920324,1707823860327,-1474.43,0.00031807,2]
[313920325,1707823860336,-500.0,0.00031807,2]
[313920326,1707823860346,-835.02,0.00031807,2]
[313920327,1707823860357,-714.04,0.00031807,2]
[313920328,1707823860372,-500.0,0.00031807,2]
[313920329,1707823860381,-500.0,0.00031807,2]
[313920330,1707823860390,-500.0,0.00031807,2]
[313920331,1707823860400,-500.0,0.00031807,2]
[313920332,1707823860410,-1562.04,0.00031807,2]
[313920333,1707823860419,-1088.36,0.00031807,2]
[313920334,1707823860429,-500.0,0.00031807,2]
[313920335,1707823860439,-682.24,0.00031807,2]
[313920336,1707823860449,-656.5,0.00031807,2]
[313920337,1707823860460,-1750.39,0.00031807,2]
[313920338,1707823860470,-1786.42,0.00031807,2]
[313920339,1707823860480,-500.0,0.00031807,2]
[313920340,1707823860490,-799.68,0.00031807,2]
[313920341,1707823860499,-500.0,0.00031807,2]
[313920342,1707823860509,-500.0,0.00031807,2]
[313920343,1707823860518,-650.86,0.00031807,2]
[313920344,1707823860528,-500.0,0.00031807,2]
[313920345,1707823860538,-500.0,0.00031807,2]
[313920346,1707823860547,-1873.71,0.00031807,2]
[313920347,1707823860556,-500.0,0.00031807,2]
[313920348,1707823860566,-1445.49,0.00031807,2]
[313920349,1707823860575,-500.0,0.00031807,2]
[313920350,1707823860584,-552.15,0.00031807,2]
[313920351,1707823860594,-500.0,0.00031807,2]
[313920352,1707823860605,-500.0,0.00031807,2]